[Event "Late-Titled-Tuesday-Blitz-July-09-2024"]
[Site "Chess.com"]
[Date "2024.07.09"]
[Round "1"]
[White "HouseOfDurin"]
[Black "ansko1999"]
[Result "0-1"]
[WhiteElo "2288"]
[BlackElo "2622"]
[TimeControl "180+1"]
[EndTime "14:08:59 PDT"]
[Termination "ansko1999 won by resignation"]

1. d4 {[%clk 0:03:00.9]} 1... d5 {[%clk 0:02:59.6]} 2. Bg5 {[%clk 0:03:01]} 2...
c5 {[%clk 0:02:57.3]} 3. c3 {[%clk 0:03:00.6]} 3... Nf6 {[%clk 0:02:54.4]} 4.
Bxf6 {[%clk 0:03:00.2]} 4... gxf6 {[%clk 0:02:52.7]} 5. g3 {[%clk 0:02:55.7]}
5... e5 {[%clk 0:02:51.9]} 6. e3 {[%clk 0:02:48.8]} 6... Be6 {[%clk 0:02:47.5]}
7. Nd2 {[%clk 0:02:41.4]} 7... Qb6 {[%clk 0:02:43]} 8. Qb3 {[%clk 0:02:39.7]}
8... Nc6 {[%clk 0:02:40.7]} 9. Qxb6 {[%clk 0:02:34]} 9... axb6 {[%clk
0:02:41.6]} 10. Bb5 {[%clk 0:02:34]} 10... O-O-O {[%clk 0:02:33.2]} 11. Ne2
{[%clk 0:02:28.1]} 11... h5 {[%clk 0:02:18.2]} 12. h4 {[%clk 0:02:27.4]} 12...
Kc7 {[%clk 0:02:17.3]} 13. f4 {[%clk 0:02:16.4]} 13... Bg4 {[%clk 0:02:15.7]}
14. Kf2 {[%clk 0:02:15.7]} 14... Bh6 {[%clk 0:01:52.7]} 15. Bxc6 {[%clk
0:02:01.8]} 15... Kxc6 {[%clk 0:01:50.5]} 16. Nf3 {[%clk 0:01:48.2]} 16... cxd4
{[%clk 0:01:38.7]} 17. cxd4 {[%clk 0:01:42.5]} 17... e4 {[%clk 0:01:36.6]} 18.
Rhc1+ {[%clk 0:01:34.9]} 18... Kd6 {[%clk 0:01:32.7]} 19. Nh2 {[%clk 0:01:13.6]}
19... Bxe2 {[%clk 0:01:30.4]} 20. Kxe2 {[%clk 0:01:14.5]} 20... f5 {[%clk
0:01:30]} 21. Rc3 {[%clk 0:01:00.1]} 21... Rc8 {[%clk 0:01:24.7]} 22. Rac1
{[%clk 0:00:59.7]} 22... Rc6 {[%clk 0:01:21]} 23. b4 {[%clk 0:00:46.8]} 23...
Rg8 {[%clk 0:01:16.2]} 24. Nf1 {[%clk 0:00:44.6]} 24... Ra8 {[%clk 0:01:15.5]}
25. Rxc6+ {[%clk 0:00:20.9]} 25... bxc6 {[%clk 0:01:15.5]} 26. Rc2 {[%clk
0:00:17.8]} 26... Bf8 {[%clk 0:01:12.2]} 27. Rb2 {[%clk 0:00:16.1]} 27... Kc7
{[%clk 0:01:05.6]} 28. Kd2 {[%clk 0:00:16.1]} 28... Ra3 {[%clk 0:01:01.7]} 29.
Kc2 {[%clk 0:00:13.3]} 29... Kb7 {[%clk 0:00:59.4]} 30. Kb1 {[%clk 0:00:12.1]}
30... Ka6 {[%clk 0:00:59.2]} 31. Kc2 {[%clk 0:00:08.8]} 31... Kb5 {[%clk
0:00:58.6]} 32. Kb1 {[%clk 0:00:07.6]} 32... Bxb4 {[%clk 0:00:55.1]} 33. Nd2
{[%clk 0:00:04.4]} 33... Rxe3 {[%clk 0:00:51]} 34. Nb3 {[%clk 0:00:03.9]} 34...
Re1+ {[%clk 0:00:48]} 35. Kc2 {[%clk 0:00:03.9]} 35... Re2+ {[%clk 0:00:47.7]}
36. Kb1 {[%clk 0:00:03.9]} 36... Rxb2+ {[%clk 0:00:47.2]} 37. Kxb2 {[%clk
0:00:04.8]} 37... Be1 {[%clk 0:00:44.3]} 38. Kc2 {[%clk 0:00:02]} 38... Bxg3
{[%clk 0:00:42.3]} 39. Nc1 {[%clk 0:00:02.6]} 39... Bxf4 {[%clk 0:00:42]} 40.
Ne2 {[%clk 0:00:03.3]} 40... Be3 {[%clk 0:00:41.1]} 41. Kb3 {[%clk 0:00:03.5]}
41... f4 {[%clk 0:00:38.8]} 42. a4+ {[%clk 0:00:04.4]} 42... Ka6 {[%clk
0:00:39.2]} 43. Kc3 {[%clk 0:00:04.7]} 43... f3 {[%clk 0:00:38.7]} 44. Ng3
{[%clk 0:00:05.4]} 44... Bf2 {[%clk 0:00:35.3]} 45. Nf1 {[%clk 0:00:05.9]} 45...
Bxh4 {[%clk 0:00:35.3]} 46. Kd2 {[%clk 0:00:05.5]} 46... Bg5+ {[%clk 0:00:35.1]}
47. Ke1 {[%clk 0:00:04.5]} 47... Bf4 {[%clk 0:00:35.6]} 48. Kf2 {[%clk
0:00:04.7]} 48... h4 {[%clk 0:00:35.5]} 49. Kg1 {[%clk 0:00:04.6]} 49... h3
{[%clk 0:00:35.8]} 50. a5 {[%clk 0:00:04]} 50... Kxa5 {[%clk 0:00:35.3]} 51. Kh1
{[%clk 0:00:04]} 51... Kb4 {[%clk 0:00:35.5]} 52. Ne3 {[%clk 0:00:01.7]} 52...
Bxe3 {[%clk 0:00:35.3]} 53. Kh2 {[%clk 0:00:02.1]} 53... Bf2 {[%clk 0:00:35.5]}
54. Kh1 {[%clk 0:00:01.3]} 54... f5 {[%clk 0:00:35.2]} 55. Kh2 {[%clk
0:00:01.7]} 55... Kc4 {[%clk 0:00:35.8]} 56. Kxh3 {[%clk 0:00:02.2]} 56... Kxd4
{[%clk 0:00:35.8]} 57. Kh2 {[%clk 0:00:02.3]} 57... Ke5 {[%clk 0:00:36.4]} 58.
Kh1 {[%clk 0:00:02.5]} 58... Kf6 {[%clk 0:00:37]} 59. Kh2 {[%clk 0:00:02.8]}
59... Kf7 {[%clk 0:00:37.9]} 60. Kh3 {[%clk 0:00:03.2]} 60... Kg7 {[%clk
0:00:38.8]} 61. Kh2 {[%clk 0:00:03.9]} 61... Kh7 {[%clk 0:00:39.7]} 62. Kh1
{[%clk 0:00:04.3]} 62... Kh8 {[%clk 0:00:40.6]} 63. Kh2 {[%clk 0:00:05]} 63...
Kg8 {[%clk 0:00:41.5]} 64. Kh1 {[%clk 0:00:05.4]} 64... Kf8 {[%clk 0:00:42.4]}
65. Kh2 {[%clk 0:00:06.1]} 65... Ke8 {[%clk 0:00:43.3]} 66. Kh3 {[%clk
0:00:06.5]} 66... Kd8 {[%clk 0:00:44.2]} 67. Kh2 {[%clk 0:00:06.6]} 67... Kc8
{[%clk 0:00:45.1]} 68. Kh3 {[%clk 0:00:07.3]} 68... Kb8 {[%clk 0:00:46]} 69. Kh2
{[%clk 0:00:08]} 69... Ka8 {[%clk 0:00:46.9]} 70. Kh1 {[%clk 0:00:08.5]} 70...
Ka7 {[%clk 0:00:47.8]} 71. Kh2 {[%clk 0:00:09.1]} 71... Kb7 {[%clk 0:00:48.7]}
72. Kh1 {[%clk 0:00:09.7]} 72... Kc7 {[%clk 0:00:49.6]} 73. Kh2 {[%clk
0:00:10.6]} 73... Kd7 {[%clk 0:00:50.5]} 74. Kh1 {[%clk 0:00:11.4]} 74... Ke7
{[%clk 0:00:51.4]} 75. Kh2 {[%clk 0:00:12.3]} 75... Kf7 {[%clk 0:00:52.3]} 76.
Kh1 {[%clk 0:00:13.1]} 76... Kf6 {[%clk 0:00:53.2]} 77. Kh2 {[%clk 0:00:14]}
77... Ke6 {[%clk 0:00:54.1]} 78. Kh1 {[%clk 0:00:14.8]} 78... Kd6 {[%clk
0:00:55]} 79. Kh2 {[%clk 0:00:15.7]} 79... Kc5 {[%clk 0:00:55.9]} 80. Kh1 {[%clk
0:00:16.5]} 80... Kc4 {[%clk 0:00:56.8]} 81. Kh2 {[%clk 0:00:17.4]} 81... Kd4
{[%clk 0:00:57.7]} 82. Kh1 {[%clk 0:00:18.2]} 82... Ke5 {[%clk 0:00:58.6]} 83.
Kh2 {[%clk 0:00:19.1]} 83... b5 {[%clk 0:00:59.5]} 84. Kh1 {[%clk 0:00:20]}
84... Kf6 {[%clk 0:01:00.4]} 85. Kh2 {[%clk 0:00:20.8]} 85... Kg6 {[%clk
0:01:01.3]} 86. Kh1 {[%clk 0:00:21.6]} 86... Kh6 {[%clk 0:01:02.2]} 87. Kh2
{[%clk 0:00:22.5]} 87... Kh7 {[%clk 0:01:03.1]} 88. Kh1 {[%clk 0:00:23.3]} 88...
Kh8 {[%clk 0:01:04]} 89. Kh2 {[%clk 0:00:24.2]} 89... Kg8 {[%clk 0:01:04.9]} 90.
Kh1 {[%clk 0:00:25.1]} 90... Kf8 {[%clk 0:01:05.8]} 91. Kh2 {[%clk 0:00:26]}
91... Ke8 {[%clk 0:01:06.7]} 92. Kh1 {[%clk 0:00:26.9]} 92... Kd8 {[%clk
0:01:07.6]} 93. Kh2 {[%clk 0:00:27.8]} 93... Kc8 {[%clk 0:01:08.5]} 94. Kh1
{[%clk 0:00:28.7]} 94... Kb8 {[%clk 0:01:09.4]} 95. Kh2 {[%clk 0:00:29.6]} 95...
Ka8 {[%clk 0:01:10.3]} 96. Kh1 {[%clk 0:00:30.5]} 96... Ka7 {[%clk 0:01:11.2]}
97. Kh2 {[%clk 0:00:31.3]} 97... Kb7 {[%clk 0:01:12.1]} 98. Kh1 {[%clk
0:00:32.2]} 98... Kc7 {[%clk 0:01:13]} 99. Kh2 {[%clk 0:00:33]} 99... Kd7 {[%clk
0:01:13.9]} 100. Kh1 {[%clk 0:00:33.9]} 100... Ke7 {[%clk 0:01:14.8]} 101. Kh2
{[%clk 0:00:34.8]} 101... Kf7 {[%clk 0:01:15.7]} 102. Kh1 {[%clk 0:00:35.6]}
102... Kg7 {[%clk 0:01:16.6]} 103. Kh2 {[%clk 0:00:36.5]} 103... Kg6 {[%clk
0:01:17.5]} 104. Kh1 {[%clk 0:00:37.4]} 104... Kf6 {[%clk 0:01:18.4]} 105. Kh2
{[%clk 0:00:38.3]} 105... Ke6 {[%clk 0:01:19.3]} 106. Kh1 {[%clk 0:00:39.2]}
106... Kd6 {[%clk 0:01:20.2]} 107. Kh2 {[%clk 0:00:40.1]} 107... Kc5 {[%clk
0:01:21.1]} 108. Kh1 {[%clk 0:00:41]} 108... Kb6 {[%clk 0:01:22]} 109. Kh2
{[%clk 0:00:41.9]} 109... Ka5 {[%clk 0:01:22.9]} 110. Kh1 {[%clk 0:00:42.7]}
110... Ka4 {[%clk 0:01:23.8]} 111. Kh2 {[%clk 0:00:43.6]} 111... Ka3 {[%clk
0:01:24.7]} 112. Kh1 {[%clk 0:00:44.5]} 112... Ka2 {[%clk 0:01:25.6]} 113. Kh2
{[%clk 0:00:45.4]} 113... Kb2 {[%clk 0:01:26.5]} 114. Kh1 {[%clk 0:00:46.3]}
114... Kc2 {[%clk 0:01:27.4]} 115. Kh2 {[%clk 0:00:47.2]} 115... b4 {[%clk
0:01:28.3]} 116. Kh1 {[%clk 0:00:48.1]} 116... Kc3 {[%clk 0:01:29.2]} 117. Kh2
{[%clk 0:00:49]} 117... Kc4 {[%clk 0:01:30.1]} 118. Kh1 {[%clk 0:00:49.9]}
118... Kc5 {[%clk 0:01:31]} 119. Kh2 {[%clk 0:00:50.8]} 119... Kb5 {[%clk
0:01:31.9]} 120. Kh1 {[%clk 0:00:51.6]} 120... Ka5 {[%clk 0:01:32.8]} 121. Kh2
{[%clk 0:00:52.5]} 121... Ka6 {[%clk 0:01:33.7]} 122. Kh1 {[%clk 0:00:53.4]}
122... Ka7 {[%clk 0:01:34.6]} 123. Kh2 {[%clk 0:00:54.3]} 123... Ka8 {[%clk
0:01:35.5]} 124. Kh1 {[%clk 0:00:55.2]} 124... Kb8 {[%clk 0:01:36.4]} 125. Kh2
{[%clk 0:00:56.1]} 125... Kc8 {[%clk 0:01:37.3]} 126. Kh1 {[%clk 0:00:57]}
126... Kd8 {[%clk 0:01:38.2]} 127. Kh2 {[%clk 0:00:57.9]} 127... Ke8 {[%clk
0:01:39.1]} 128. Kh1 {[%clk 0:00:58.8]} 128... Kf8 {[%clk 0:01:40]} 129. Kh2
{[%clk 0:00:59.7]} 129... Kg8 {[%clk 0:01:40.9]} 130. Kh1 {[%clk 0:01:00.6]}
130... Kh8 {[%clk 0:01:41.8]} 131. Kh2 {[%clk 0:01:01.5]} 131... Kh7 {[%clk
0:01:42.7]} 132. Kh1 {[%clk 0:01:02.4]} 132... Kg7 {[%clk 0:01:43.6]} 133. Kh2
{[%clk 0:01:03.3]} 133... Kf7 {[%clk 0:01:44.5]} 134. Kh1 {[%clk 0:01:04.2]}
134... Ke7 {[%clk 0:01:45.4]} 135. Kh2 {[%clk 0:01:05.1]} 135... Kd7 {[%clk
0:01:46.3]} 136. Kh1 {[%clk 0:01:06]} 136... Kc7 {[%clk 0:01:47.2]} 137. Kh2
{[%clk 0:01:06.9]} 137... Kb7 {[%clk 0:01:48.1]} 138. Kh1 {[%clk 0:01:07.8]}
138... Kb6 {[%clk 0:01:49]} 139. Kh2 {[%clk 0:01:08.7]} 139... Kb5 {[%clk
0:01:49.9]} 140. Kh1 {[%clk 0:01:09.6]} 140... Kc5 {[%clk 0:01:50.8]} 141. Kh2
{[%clk 0:01:10.5]} 141... Kd6 {[%clk 0:01:51.7]} 142. Kh1 {[%clk 0:01:11.4]}
142... Ke6 {[%clk 0:01:52.6]} 143. Kh2 {[%clk 0:01:12.3]} 143... Kf6 {[%clk
0:01:53.5]} 144. Kh1 {[%clk 0:01:13.2]} 144... Kg6 {[%clk 0:01:54.4]} 145. Kh2
{[%clk 0:01:14.1]} 145... Kh6 {[%clk 0:01:55.3]} 146. Kh1 {[%clk 0:01:15]}
146... Kg5 {[%clk 0:01:56.2]} 147. Kh2 {[%clk 0:01:15.9]} 147... Kf4 {[%clk
0:01:57.1]} 148. Kh1 {[%clk 0:01:16.8]} 148... Ke5 {[%clk 0:01:58]} 149. Kh2
{[%clk 0:01:17.7]} 149... b3 {[%clk 0:01:58.9]} 150. Kh1 {[%clk 0:01:18.6]}
150... Kd4 {[%clk 0:01:59.8]} 151. Kh2 {[%clk 0:01:19.5]} 151... Kc4 {[%clk
0:02:00.7]} 152. Kh1 {[%clk 0:01:20.4]} 152... Kb4 {[%clk 0:02:01.6]} 153. Kh2
{[%clk 0:01:21.3]} 153... Ka4 {[%clk 0:02:02.5]} 154. Kh1 {[%clk 0:01:22.2]}
154... Ka5 {[%clk 0:02:03.4]} 155. Kh2 {[%clk 0:01:23.1]} 155... Ka6 {[%clk
0:02:04.3]} 156. Kh1 {[%clk 0:01:24]} 156... Ka7 {[%clk 0:02:05.2]} 157. Kh2
{[%clk 0:01:24.9]} 157... Ka8 {[%clk 0:02:06.1]} 158. Kh1 {[%clk 0:01:25.8]}
158... Kb8 {[%clk 0:02:07]} 159. Kh2 {[%clk 0:01:26.7]} 159... Kb7 {[%clk
0:02:07.9]} 160. Kh1 {[%clk 0:01:27.6]} 160... Kb6 {[%clk 0:02:08.8]} 161. Kh2
{[%clk 0:01:28.5]} 161... Kb5 {[%clk 0:02:09.7]} 162. Kh1 {[%clk 0:01:29.4]}
162... Kc5 {[%clk 0:02:10.6]} 163. Kh2 {[%clk 0:01:30.3]} 163... Kd6 {[%clk
0:02:11.5]} 164. Kh1 {[%clk 0:01:31.2]} 164... Kc7 {[%clk 0:02:12.4]} 165. Kh2
{[%clk 0:01:32.1]} 165... Kc8 {[%clk 0:02:13.3]} 166. Kh1 {[%clk 0:01:33]}
166... Kd8 {[%clk 0:02:14.2]} 167. Kh2 {[%clk 0:01:33.9]} 167... Kd7 {[%clk
0:02:15.1]} 168. Kh1 {[%clk 0:01:34.8]} 168... Ke7 {[%clk 0:02:16]} 169. Kh2
{[%clk 0:01:35.7]} 169... Ke8 {[%clk 0:02:16.9]} 170. Kh1 {[%clk 0:01:36.6]}
170... Kf8 {[%clk 0:02:17.8]} 171. Kh2 {[%clk 0:01:37.5]} 171... Kf7 {[%clk
0:02:18.7]} 172. Kh1 {[%clk 0:01:38.4]} 172... Kg7 {[%clk 0:02:19.6]} 173. Kh2
{[%clk 0:01:39.3]} 173... Kg8 {[%clk 0:02:20.5]} 174. Kh1 {[%clk 0:01:40.2]}
174... Kh8 {[%clk 0:02:21.4]} 175. Kh2 {[%clk 0:01:41.1]} 175... Kh7 {[%clk
0:02:22.3]} 176. Kh1 {[%clk 0:01:42]} 176... Kh6 {[%clk 0:02:23.2]} 177. Kh2
{[%clk 0:01:42.9]} 177... Kg6 {[%clk 0:02:24.1]} 178. Kh1 {[%clk 0:01:43.8]}
178... Kf6 {[%clk 0:02:25]} 179. Kh2 {[%clk 0:01:44.7]} 179... Ke6 {[%clk
0:02:25.9]} 180. Kh1 {[%clk 0:01:45.6]} 180... Ke5 {[%clk 0:02:26.8]} 181. Kh2
{[%clk 0:01:46.5]} 181... Kd4 {[%clk 0:02:27.7]} 182. Kh1 {[%clk 0:01:47.4]}
182... c5 {[%clk 0:02:28.6]} 183. Kh2 {[%clk 0:01:48.3]} 183... Kc4 {[%clk
0:02:29.5]} 184. Kh1 {[%clk 0:01:49.2]} 184... Kb4 {[%clk 0:02:30.4]} 185. Kh2
{[%clk 0:01:50.1]} 185... Ka4 {[%clk 0:02:31.3]} 186. Kh1 {[%clk 0:01:51]}
186... Ka5 {[%clk 0:02:32.2]} 187. Kh2 {[%clk 0:01:51.9]} 187... Ka6 {[%clk
0:02:33.1]} 188. Kh1 {[%clk 0:01:52.8]} 188... Ka7 {[%clk 0:02:34]} 189. Kh2
{[%clk 0:01:53.7]} 189... Ka8 {[%clk 0:02:34.9]} 190. Kh1 {[%clk 0:01:54.6]}
190... Kb8 {[%clk 0:02:35.8]} 191. Kh2 {[%clk 0:01:55.5]} 191... Kc8 {[%clk
0:02:36.7]} 192. Kh1 {[%clk 0:01:55.9]} 192... Kd8 {[%clk 0:02:37.6]} 193. Kh2
{[%clk 0:01:56.8]} 193... Ke8 {[%clk 0:02:38.5]} 194. Kh1 {[%clk 0:01:57.7]}
194... Kf8 {[%clk 0:02:39.4]} 195. Kh2 {[%clk 0:01:58.6]} 195... Kg8 {[%clk
0:02:40.3]} 196. Kh1 {[%clk 0:01:59.5]} 196... Kh8 {[%clk 0:02:41.2]} 197. Kh2
{[%clk 0:02:00.4]} 197... Kh7 {[%clk 0:02:42.1]} 198. Kh1 {[%clk 0:02:01.3]}
198... Kg7 {[%clk 0:02:43]} 199. Kh2 {[%clk 0:02:02.2]} 199... Kf7 {[%clk
0:02:43.9]} 200. Kh1 {[%clk 0:02:03.1]} 200... Ke7 {[%clk 0:02:44.8]} 201. Kh2
{[%clk 0:02:03.9]} 201... Kd7 {[%clk 0:02:45.7]} 0-1

[Event "Late-Titled-Tuesday-Blitz-July-09-2024"]
[Site "Chess.com"]
[Date "2024.07.09"]
[Round "1"]
[White "Flawless_Fighter"]
[Black "fugadelafuga"]
[Result "1/2-1/2"]
[WhiteElo "2772"]
[BlackElo "2429"]
[TimeControl "180+1"]
[EndTime "14:09:11 PDT"]
[Termination "Game drawn by repetition"]

1. g3 {[%clk 0:03:00.8]} 1... d5 {[%clk 0:02:59.3]} 2. Bg2 {[%clk 0:03:00.9]}
2... c6 {[%clk 0:02:56]} 3. Nf3 {[%clk 0:03:00.8]} 3... Nf6 {[%clk 0:02:54.7]}
4. O-O {[%clk 0:03:01]} 4... Bf5 {[%clk 0:02:54.2]} 5. b3 {[%clk 0:03:01.3]}
5... Nbd7 {[%clk 0:02:53.7]} 6. Bb2 {[%clk 0:03:01.8]} 6... e6 {[%clk 0:02:54]}
7. d3 {[%clk 0:03:02.3]} 7... h6 {[%clk 0:02:54.4]} 8. Nbd2 {[%clk 0:03:02.9]}
8... Bh7 {[%clk 0:02:54.2]} 9. Re1 {[%clk 0:03:03.3]} 9... Bc5 {[%clk
0:02:53.5]} 10. e4 {[%clk 0:03:00.1]} 10... O-O {[%clk 0:02:47.6]} 11. Qe2
{[%clk 0:02:58.6]} 11... Re8 {[%clk 0:02:39]} 12. Rad1 {[%clk 0:02:57.3]} 12...
a5 {[%clk 0:02:24]} 13. a3 {[%clk 0:02:56.5]} 13... a4 {[%clk 0:02:21.9]} 14. b4
{[%clk 0:02:56.3]} 14... Bb6 {[%clk 0:02:20.8]} 15. h3 {[%clk 0:02:55.3]} 15...
c5 {[%clk 0:02:19.6]} 16. e5 {[%clk 0:02:51.1]} 16... Nh5 {[%clk 0:02:15.7]} 17.
bxc5 {[%clk 0:02:31.9]} 17... Bxc5 {[%clk 0:02:14.5]} 18. Kh2 {[%clk 0:02:28]}
18... Qb6 {[%clk 0:02:07.7]} 19. Rb1 {[%clk 0:02:23]} 19... Qa7 {[%clk
0:01:59.2]} 20. Rf1 {[%clk 0:02:14.6]} 20... Rac8 {[%clk 0:01:58.1]} 21. Rbc1
{[%clk 0:01:57]} 21... Qb6 {[%clk 0:01:54.1]} 22. Rb1 {[%clk 0:01:53.5]} 22...
Qa7 {[%clk 0:01:53.6]} 23. Nh4 {[%clk 0:01:50.1]} 23... g6 {[%clk 0:01:48.8]}
24. c4 {[%clk 0:01:42.6]} 24... Bd4 {[%clk 0:01:25.3]} 25. cxd5 {[%clk
0:01:32.1]} 25... exd5 {[%clk 0:01:24.6]} 26. Ndf3 {[%clk 0:01:17.6]} 26... Bxb2
{[%clk 0:01:19.6]} 27. Rxb2 {[%clk 0:01:18.5]} 27... Qc5 {[%clk 0:01:01.4]} 28.
Rxb7 {[%clk 0:01:13.5]} 28... Nf8 {[%clk 0:00:59.9]} 29. Ng1 {[%clk 0:00:44.4]}
29... Ng7 {[%clk 0:00:54.7]} 30. Rb4 {[%clk 0:00:39.8]} 30... Nd7 {[%clk
0:00:50]} 31. d4 {[%clk 0:00:39.8]} 31... Qc3 {[%clk 0:00:48.8]} 32. Rxa4 {[%clk
0:00:35.2]} 32... Nb6 {[%clk 0:00:47.7]} 33. Rb4 {[%clk 0:00:26.2]} 33... Nc4
{[%clk 0:00:46.8]} 34. Nhf3 {[%clk 0:00:24.1]} 34... Nxa3 {[%clk 0:00:43.1]} 35.
Rb7 {[%clk 0:00:24.2]} 35... Ne6 {[%clk 0:00:38.7]} 36. Qb2 {[%clk 0:00:23.4]}
36... Qxb2 {[%clk 0:00:33.8]} 37. Rxb2 {[%clk 0:00:24]} 37... g5 {[%clk
0:00:27.1]} 38. Ra1 {[%clk 0:00:18.4]} 38... Nc2 {[%clk 0:00:25.1]} 39. Rd1
{[%clk 0:00:14.1]} 39... Be4 {[%clk 0:00:25]} 40. Ne2 {[%clk 0:00:13.9]} 40...
Rb8 {[%clk 0:00:22.6]} 41. Rxb8 {[%clk 0:00:12.7]} 41... Rxb8 {[%clk 0:00:23.5]}
42. Rd2 {[%clk 0:00:13.1]} 42... Rb4 {[%clk 0:00:20.3]} 43. Nxg5 {[%clk
0:00:08.2]} 43... hxg5 {[%clk 0:00:16]} 44. Bxe4 {[%clk 0:00:08.5]} 44... dxe4
{[%clk 0:00:11.8]} 45. Rxc2 {[%clk 0:00:08.3]} 45... Nxd4 {[%clk 0:00:12.2]} 46.
Nxd4 {[%clk 0:00:06.7]} 46... Rxd4 {[%clk 0:00:13.1]} 47. Re2 {[%clk 0:00:05.8]}
47... Kf8 {[%clk 0:00:11.1]} 48. g4 {[%clk 0:00:02.2]} 48... Ke7 {[%clk
0:00:10.6]} 49. Ra2 {[%clk 0:00:02.4]} 49... Ke6 {[%clk 0:00:09.6]} 50. Ra5
{[%clk 0:00:02.7]} 50... Rd5 {[%clk 0:00:08.1]} 51. Ra6+ {[%clk 0:00:02.1]}
51... Kxe5 {[%clk 0:00:07.6]} 52. Kg3 {[%clk 0:00:02.8]} 52... Rd3+ {[%clk
0:00:07.5]} 53. Kg2 {[%clk 0:00:03.4]} 53... e3 {[%clk 0:00:06.4]} 54. Ra5+
{[%clk 0:00:03.3]} 54... Ke6 {[%clk 0:00:06.1]} 55. fxe3 {[%clk 0:00:02.8]}
55... f6 {[%clk 0:00:04.8]} 56. Kf3 {[%clk 0:00:03.1]} 56... Rd2 {[%clk
0:00:04.6]} 57. Ra6+ {[%clk 0:00:03.5]} 57... Kf7 {[%clk 0:00:04.1]} 58. Ra7+
{[%clk 0:00:02.6]} 58... Kg6 {[%clk 0:00:04.3]} 59. Ra6 {[%clk 0:00:02.5]} 59...
Rh2 {[%clk 0:00:04.2]} 60. Kg3 {[%clk 0:00:03.2]} 60... Re2 {[%clk 0:00:04.7]}
61. Re6 {[%clk 0:00:03.7]} 61... Re1 {[%clk 0:00:04.4]} 62. Kf2 {[%clk
0:00:03.7]} 62... Rh1 {[%clk 0:00:04.3]} 63. Kg2 {[%clk 0:00:04.2]} 63... Ra1
{[%clk 0:00:04.9]} 64. e4 {[%clk 0:00:04.6]} 64... Ra3 {[%clk 0:00:05]} 65. e5
{[%clk 0:00:04.5]} 65... Ra2+ {[%clk 0:00:05]} 66. Kf1 {[%clk 0:00:04.6]} 66...
Ra1+ {[%clk 0:00:04.9]} 67. Ke2 {[%clk 0:00:05.3]} 67... Ra2+ {[%clk 0:00:05.4]}
68. Kd1 {[%clk 0:00:04.7]} 68... Ra3 {[%clk 0:00:04.7]} 69. Rxf6+ {[%clk
0:00:04.7]} 69... Kg7 {[%clk 0:00:05.2]} 70. Rf5 {[%clk 0:00:05.2]} 70... Kg6
{[%clk 0:00:05.7]} 71. Rf6+ {[%clk 0:00:05.2]} 71... Kg7 {[%clk 0:00:05.7]} 72.
Rf5 {[%clk 0:00:05.5]} 72... Kg6 {[%clk 0:00:05.6]} 73. Ke2 {[%clk 0:00:04.7]}
73... Rxh3 {[%clk 0:00:05.5]} 74. e6 {[%clk 0:00:05.2]} 74... Rh8 {[%clk
0:00:04.1]} 75. Kf3 {[%clk 0:00:02.3]} 75... Re8 {[%clk 0:00:04.3]} 76. Re5
{[%clk 0:00:02.6]} 76... Kf6 {[%clk 0:00:04.8]} 77. Ke4 {[%clk 0:00:02.2]} 77...
Rxe6 {[%clk 0:00:04.4]} 78. Rxe6+ {[%clk 0:00:02.6]} 78... Kxe6 {[%clk
0:00:05.3]} 79. Kd4 {[%clk 0:00:03.2]} 79... Kd6 {[%clk 0:00:05.7]} 80. Ke4
{[%clk 0:00:03.8]} 80... Ke6 {[%clk 0:00:06.2]} 81. Kd4 {[%clk 0:00:04.5]} 81...
Kd6 {[%clk 0:00:06.1]} 82. Ke4 {[%clk 0:00:05]} 82... Ke6 {[%clk 0:00:06.5]}
1/2-1/2